fUSD/lending_fUSD_20241223
["ID","MTS","AMOUNT","RATE_DAILY","PERIOD"]
[346466377,1734985890052,-500.0,0.00014794,2]
[346466378,1734985890062,-1317.58,0.00014794,2]
[346466379,1734985890071,-500.0,0.00014794,2]
[346466380,1734985890080,-500.0,0.00014794,2]
[346466381,1734985890091,-512.60937252,0.00014794,2]
[346466382,1734985890100,-1186.04,0.00014794,2]
[346466383,1734985890110,-151.0,0.00014794,2]
[346466384,1734985890119,-500.0,0.00014794,2]
[346466385,1734985890128,-500.0,0.00014794,2]
[346466386,1734985890138,-1380.25,0.00014794,2]
[346466387,1734985890147,-199.513754,0.00014794,2]
[346466388,1734985890156,-534.95,0.00014794,2]
[346466389,1734985890166,-151.0,0.00014794,2]
[346466390,1734985890175,-1680.71,0.00014794,2]
[346466391,1734985890184,-500.0,0.00014794,2]
[346466392,1734985890195,-199.513754,0.00014794,2]
[346466393,1734985890204,-500.0,0.00014794,2]
[346466394,1734985890213,-500.0,0.00014794,2]
[346466395,1734985890224,-2218.43,0.00014794,2]
[346466396,1734985890232,-500.0,0.00014794,2]
[346466397,1734985890241,-500.0,0.00014794,2]
[346466398,1734985890251,-454.19928918,0.00014794,2]
[346466399,1734985890260,-825.1,0.00014794,2]
[346466400,1734985890269,-500.0,0.00014794,2]
[346466401,1734985890277,-711.38,0.00014794,2]
[346466402,1734985890286,-1441.48,0.00014794,2]
[346466403,1734985890296,-2489.45,0.00014794,2]
[346466404,1734985890305,-500.0,0.00014794,2]
[346466405,1734985890315,-1072.76,0.00014794,2]
[346466406,1734985890325,-1330.49,0.00014794,2]
[346466407,1734985890335,-1067.18,0.00014794,2]
[346466408,1734985890345,-500.0,0.00014794,2]
[346466409,1734985890355,-500.0,0.00014794,2]
[346466410,1734985890364,-1330.05,0.00014794,2]
[346466411,1734985890374,-2293.86,0.00014794,2]
[346466412,1734985890383,-960.34,0.00014794,2]
[346466413,1734985890393,-726.06,0.00014794,2]
[346466414,1734985890403,-1198.05,0.00014794,2]
[346466415,1734985890412,-500.0,0.00014794,2]
[346466416,1734985890422,-676.2,0.00014794,2]
[346466417,1734985890431,-976.17,0.00014794,2]
[346466418,1734985890444,-500.0,0.00014794,2]
[346466419,1734985890453,-572.9,0.00014794,2]
[346466420,1734985890463,-2358.02,0.00014794,2]
[346466421,1734985890473,-1767.73,0.00014794,2]
[346466422,1734985890482,-1610.47,0.00014794,2]
[346466423,1734985890492,-999.64,0.00014794,2]
[346466424,1734985890502,-1406.6,0.00014794,2]
[346466425,1734985890511,-1381.12,0.00014794,2]
[346466426,1734985890521,-500.0,0.00014794,2]
[346466427,1734985890530,-2739.52,0.00014794,2]
[346466428,1734985890540,-500.0,0.00014794,2]
[346466429,1734985890549,-500.0,0.00014794,2]
[346466430,1734985890559,-151.0,0.00014794,2]
[346466431,1734985890568,-500.0,0.00014794,2]
[346466432,1734985890578,-1819.83,0.00014794,2]
[346466433,1734985890587,-500.0,0.00014794,2]
[346466434,1734985890596,-500.0,0.00014794,2]
[346466435,1734985890606,-670.54,0.00014794,2]
[346466436,1734985890615,-500.0,0.00014794,2]
[346466437,1734985890625,-500.0,0.00014794,2]
[346466438,1734985890634,-500.0,0.00014794,2]
[346466439,1734985890643,-1116.26,0.00014794,2]
[346466440,1734985890653,-500.0,0.00014794,2]
[346466441,1734985890748,-500.0,0.00014794,2]
[346466442,1734985890757,-1104.4,0.00014794,2]
[346466443,1734985890767,-500.0,0.00014794,2]
[346466444,1734985890776,-500.0,0.00014794,2]
[346466445,1734985890785,-1127.54,0.00014794,2]
[346466446,1734985890794,-500.0,0.00014794,2]
[346466447,1734985890804,-713.56,0.00014794,2]
[346466448,1734985890813,-718.79,0.00014794,2]
[346466449,1734985890823,-500.0,0.00014794,2]
[346466450,1734985890832,-1324.85,0.00014794,2]
[346466451,1734985890841,-500.0,0.00014794,2]
[346466452,1734985890851,-546.66,0.00014794,2]
[346466453,1734985890860,-889.67,0.00014794,2]
[346466454,1734985890869,-552.31,0.00014794,2]
[346466455,1734985890879,-1591.277946,0.00014794,2]
[346466456,1734985890888,-2585.74,0.00014794,2]
[346466457,1734985890898,-584.53385043,0.00014794,2]
[346466458,1734985890907,-500.0,0.00014794,2]
[346466459,1734985890917,-1564.45,0.00014794,2]
[346466460,1734985890930,-1591.277946,0.00014794,2]
[346466461,1734985890941,-2132.91,0.00014794,2]
[346466462,1734985890950,-1910.4,0.00014794,2]
[346466463,1734985890959,-500.0,0.00014794,2]
[346466464,1734985890969,-500.0,0.00014794,2]
[346466465,1734985890978,-500.0,0.00014794,2]
[346466466,1734985890988,-500.0,0.00014794,2]
[346466467,1734985890998,-500.0,0.00014794,2]
[346466468,1734985891008,-676.74,0.00014794,2]
[346466469,1734985891017,-1052.83,0.00014794,2]
[346466470,1734985891026,-1540.54,0.00014794,2]
[346466471,1734985891035,-3961.8,0.00014794,2]
[346466472,1734985891045,-500.0,0.00014794,2]
[346466473,1734985891054,-906.99,0.00014794,2]
[346466474,1734985891063,-1220.26,0.00014794,2]
[346466475,1734985891073,-500.0,0.00014794,2]
[346466476,1734985891082,-757.77,0.00014794,2]
[346466477,1734985891091,-608.2,0.00014794,2]
[346466478,1734985891101,-537.50879461,0.00014794,2]
[346466479,1734985891111,-730.93,0.00014794,2]
[346466480,1734985891120,-164.515907,0.00014794,2]
[346466481,1734985891130,-642.48,0.00014794,2]
[346466482,1734985891139,-500.0,0.00014794,2]
[346466483,1734985891148,-1925.188234,0.00014794,2]
[346466484,1734985891157,-1880.32,0.00014794,2]
[346466485,1734985891167,-500.0,0.00014794,2]
[346466486,1734985891176,-164.515907,0.00014794,2]
[346466487,1734985891186,-1925.188234,0.00014794,2]
[346466488,1734985891195,-500.0,0.00014794,2]
[346466489,1734985891204,-500.0,0.00014794,2]
[346466490,1734985891213,-593.05,0.00014794,2]
[346466491,1734985891222,-1323.67,0.00014794,2]
[346466492,1734985891232,-731.37,0.00014794,2]
[346466493,1734985891241,-500.0,0.00014794,2]
[346466494,1734985891250,-1229.23,0.00014794,2]
[346466495,1734985891259,-1128.51,0.00014794,2]
[346466496,1734985891268,-500.0,0.00014794,2]
[346466497,1734985891277,-1556.25,0.00014794,2]
[346466498,1734985891286,-1821.81,0.00014794,2]
[346466499,1734985891295,-500.0,0.00014794,2]
[346466500,1734985891304,-2511.25,0.00014794,2]
[346466501,1734985891313,-500.0,0.00014794,2]
[346466502,1734985891322,-500.0,0.00014794,2]
[346466503,1734985891332,-207.684452,0.00014794,2]
[346466504,1734985891341,-500.0,0.00014794,2]
[346466505,1734985891350,-500.0,0.00014794,2]
[346466506,1734985891359,-1286.37,0.00014794,2]
[346466507,1734985891369,-4562.33,0.00014794,2]
[346466508,1734985891378,-1062.83,0.00014794,2]
[346466509,1734985891387,-1153.14,0.00014794,2]
[346466510,1734985891396,-641.53,0.00014794,2]
[346466511,1734985891405,-207.684452,0.00014794,2]
[346466512,1734985891414,-500.0,0.00014794,2]
[346466513,1734985891423,-2535.38,0.00014794,2]
[346466514,1734985891432,-500.0,0.00014794,2]
[346466515,1734985891443,-559.44,0.00014794,2]
[346466516,1734985891452,-2844.22,0.00014794,2]
[346466517,1734985891461,-500.0,0.00014794,2]
[346466518,1734985891470,-1175.89,0.00014794,2]
[346466519,1734985891480,-659.94,0.00014794,2]
[346466520,1734985891489,-500.0,0.00014794,2]
[346466521,1734985891498,-1425.63,0.00014794,2]
[346466522,1734985891507,-1269.21,0.00014794,2]
[346466523,1734985891516,-3167.53,0.00014794,2]
[346466524,1734985891529,-500.0,0.00014794,2]
[346466525,1734985891538,-500.0,0.00014794,2]
[346466526,1734985891548,-3442.76,0.00014794,2]
[346466527,1734985891557,-1385.92,0.00014794,2]
[346466528,1734985891566,-500.0,0.00014794,2]
[346466529,1734985891576,-1459.47,0.00014794,2]
[346466530,1734985891585,-555.79,0.00014794,2]
[346466531,1734985891595,-533.73,0.00014794,2]
[346466532,1734985891604,-997.76,0.00014794,2]
[346466533,1734985891613,-154.246433,0.00014794,2]
[346466534,1734985891623,-500.0,0.00014794,2]
[346466535,1734985891631,-1272.23,0.00014794,2]
[346466536,1734985891640,-948.63722357,0.00014794,2]
[346466537,1734985891687,-7576.04277643,0.00014794,2]
[346466538,1734985891697,-2285.32,0.00014794,2]
[346466539,1734985891706,-981.91,0.00014794,2]
[346466540,1734985891716,-154.246433,0.00014794,2]
[346466541,1734985891726,-2978.93,0.00014794,2]
[346466542,1734985891736,-9546.61,0.00014794,2]
[346466543,1734985891747,-2228.43,0.00014794,2]
[346466544,1734985891756,-151.0,0.00014794,2]
[346466545,1734985891765,-2084.77,0.00014794,2]
[346466546,1734985891775,-1275.35,0.00014794,2]
[346466547,1734985891784,-701.29,0.00014794,2]
[346466548,1734985891793,-500.0,0.00014794,2]
[346466549,1734985891802,-8504.12,0.00014794,2]
[346466550,1734985891811,-2631.63,0.00014794,2]
[346466551,1734985891820,-5876.43,0.00014794,2]
[346466552,1734985891829,-500.0,0.00014794,2]
[346466553,1734985891838,-714.851638,0.00014794,2]
[346466554,1734985891847,-1269.09,0.00014794,2]
[346466555,1734985891856,-500.0,0.00014794,2]
[346466556,1734985891865,-1403.77,0.00014794,2]
[346466557,1734985891874,-6999.05,0.00014794,2]
[346466558,1734985891883,-896.477441,0.00014794,2]
[346466559,1734985891892,-567.05,0.00014794,2]
[346466560,1734985891902,-500.0,0.00014794,2]
[346466561,1734985891912,-500.0,0.00014794,2]
[346466562,1734985891922,-978.25,0.00014794,2]
[346466563,1734985891941,-878.42,0.00014794,2]
[346466564,1734985891953,-810.98,0.00014794,2]
[346466565,1734985891962,-4971.32,0.00014794,2]
[346466566,1734985891971,-15609.61,0.00014794,2]
[346466567,1734985891981,-2082.07,0.00014794,2]
[346466568,1734985891991,-1810.82,0.00014794,2]
[346466569,1734985892001,-500.0,0.00014794,2]
[346466570,1734985892012,-500.0,0.00014794,2]
[346466571,1734985892021,-544.09,0.00014794,2]
[346466572,1734985892031,-500.0,0.00014794,2]
[346466573,1734985892040,-151.0,0.00014794,2]
[346466574,1734985892049,-21485.8,0.00014794,2]
[346466575,1734985892058,-2194.12,0.00014794,2]
[346466576,1734985892067,-537.09,0.00014794,2]
[346466577,1734985892077,-1307.78,0.00014794,2]
[346466578,1734985892086,-608.254172,0.00014794,2]
[346466579,1734985892095,-638.38,0.00014794,2]
[346466580,1734985892105,-648.7,0.00014794,2]
[346466581,1734985892114,-500.0,0.00014794,2]
[346466582,1734985892123,-830.494148,0.00014794,2]
[346466583,1734985892132,-500.0,0.00014794,2]
[346466584,1734985892142,-213.45929793,0.00014794,2]
[346466585,1734985892151,-792.62,0.00014794,2]
[346466586,1734985892160,-500.0,0.00014794,2]
[346466587,1734985892169,-500.0,0.00014794,2]
[346466588,1734985892179,-695.34,0.00014794,2]
[346466589,1734985892190,-2306.63,0.00014794,2]
[346466590,1734985892200,-500.0,0.00014794,2]
[346466591,1734985892209,-1338.41,0.00014794,2]
[346466592,1734985892218,-1110.41,0.00014794,2]
[346466593,1734985892229,-2259.15,0.00014794,2]
[346466594,1734985892239,-2704.02,0.00014794,2]
[346466595,1734985892249,-446.255174,0.00014794,2]
[346466596,1734985892258,-8082.49,0.00014794,2]
[346466597,1734985892267,-500.0,0.00014794,2]
[346466598,1734985892276,-1130.4,0.00014794,2]
[346466599,1734985892286,-446.255174,0.00014794,2]
[346466600,1734985892295,-4959.77,0.00014794,2]
[346466601,1734985892305,-500.0,0.00014794,2]
[346466602,1734985892315,-736.657144,0.00014794,2]
[346466603,1734985892324,-505.532594,0.00014794,2]
[346466604,1734985892333,-957.86,0.00014794,2]
[346466605,1734985892342,-1409.87,0.00014794,2]
[346466606,1734985892351,-1185.79,0.00014794,2]
[346466607,1734985892360,-500.0,0.00014794,2]
[346466608,1734985892370,-909.88,0.00014794,2]
[346466609,1734985892379,-500.0,0.00014794,2]
[346466610,1734985892389,-500.0,0.00014794,2]
[346466611,1734985892398,-5418.44,0.00014794,2]
[346466612,1734985892407,-1045.5,0.00014794,2]
[346466613,1734985892416,-4556.54,0.00014794,2]
[346466614,1734985892425,-881.96,0.00014794,2]
[346466615,1734985892434,-500.0,0.00014794,2]
[346466616,1734985892446,-500.0,0.00014794,2]
[346466617,1734985892455,-500.0,0.00014794,2]
[346466618,1734985892464,-25800.67,0.00014794,2]
[346466619,1734985892474,-1968.17,0.00014794,2]
[346466620,1734985892484,-500.0,0.00014794,2]
[346466621,1734985892493,-500.0,0.00014794,2]
[346466622,1734985892503,-687.21,0.00014794,2]
[346466623,1734985892512,-500.0,0.00014794,2]
[346466624,1734985892520,-3288.38,0.00014794,2]
[346466625,1734985892530,-500.0,0.00014794,2]
[346466626,1734985892539,-1811.4,0.00014794,2]
[346466627,1734985892547,-416.862212,0.00014794,2]
[346466628,1734985892557,-500.0,0.00014794,2]
[346466629,1734985892566,-1397.62,0.00014794,2]
[346466630,1734985892575,-1421.74,0.00014794,2]
[346466631,1734985892584,-638.509271,0.00014794,2]
[346466632,1734985892593,-1226.06,0.00014794,2]
[346466633,1734985892603,-500.0,0.00014794,2]
[346466634,1734985892612,-2054.5,0.00014794,2]
[346466635,1734985892621,-500.0,0.00014794,2]
[346466636,1734985892630,-1202.02,0.00014794,2]
[346466637,1734985892640,-857.55,0.00014794,2]
[346466638,1734985892649,-997.04,0.00014794,2]
[346466639,1734985892658,-500.0,0.00014794,2]
[346466640,1734985892668,-4568.68,0.00014794,2]
[346466641,1734985892678,-6837.63,0.00014794,2]
[346466642,1734985892688,-1006.94,0.00014794,2]
[346466643,1734985892698,-500.0,0.00014794,2]
[346466644,1734985892707,-3003.94,0.00014794,2]
[346466645,1734985892717,-3832.76,0.00014794,2]
[346466646,1734985892726,-500.0,0.00014794,2]
[346466647,1734985892736,-1063.28,0.00014794,2]
[346466648,1734985892745,-500.0,0.00014794,2]
[346466649,1734985892754,-500.0,0.00014794,2]
[346466650,1734985892763,-2507.56,0.00014794,2]
[346466651,1734985892772,-8648.19,0.00014794,2]
[346466652,1734985892781,-500.0,0.00014794,2]
[346466653,1734985892790,-960.03,0.00014794,2]
[346466654,1734985892799,-5405.85,0.00014794,2]
[346466655,1734985892808,-1187.23,0.00014794,2]
[346466656,1734985892817,-500.0,0.00014794,2]
[346466657,1734985892826,-2940.51,0.00014794,2]
[346466658,1734985892835,-1048.41,0.00014794,2]
[346466659,1734985892844,-840.39,0.00014794,2]
[346466660,1734985892854,-1068.6,0.00014794,2]
[346466661,1734985892863,-1993.74,0.00014794,2]
[346466662,1734985892872,-3561.12,0.00014794,2]
[346466663,1734985892881,-546.61,0.00014794,2]
[346466664,1734985892890,-500.0,0.00014794,2]
[346466665,1734985892899,-500.0,0.00014794,2]
[346466666,1734985892908,-3274.29,0.00014794,2]
[346466667,1734985892917,-1338.38,0.00014794,2]
[346466668,1734985892928,-783.78,0.00014794,2]
[346466669,1734985892940,-500.0,0.00014794,2]
[346466670,1734985892949,-6361.67,0.00014794,2]
[346466671,1734985892958,-2499.95,0.00014794,2]
[346466672,1734985892967,-1272.9,0.00014794,2]
[346466673,1734985892977,-584.79,0.00014794,2]
[346466674,1734985892986,-1264.02,0.00014794,2]
[346466675,1734985892995,-151.0,0.00014794,2]
[346466676,1734985893005,-602.61,0.00014794,2]
[346466677,1734985893014,-2583.28,0.00014794,2]
[346466678,1734985893024,-3548.89,0.00014794,2]
[346466679,1734985893033,-20926.66,0.00014794,2]
[346466680,1734985893043,-151.0,0.00014794,2]
[346466681,1734985893052,-1616.84,0.00014794,2]
[346466682,1734985893062,-345.39155,0.00014794,2]
[346466683,1734985893072,-5036.21,0.00014794,2]
[346466684,1734985893082,-2477.09,0.00014794,2]
[346466685,1734985893092,-1308.35,0.00014794,2]
[346466686,1734985893102,-3947.04,0.00014794,2]
[346466687,1734985893112,-500.0,0.00014794,2]
[346466688,1734985893122,-500.0,0.00014794,2]
[346466689,1734985893131,-1083.41,0.00014794,2]
[346466690,1734985893142,-1480.03,0.00014794,2]
[346466691,1734985893152,-2255.81,0.00014794,2]
[346466692,1734985893163,-2607.12,0.00014794,2]
[346466693,1734985893173,-5040.82,0.00014794,2]
[346466694,1734985893183,-543.495431,0.00014794,2]
[346466695,1734985893195,-1247.57,0.00014794,2]
[346466696,1734985893205,-500.0,0.00014794,2]
[346466697,1734985893215,-630.85,0.00014794,2]
[346466698,1734985893225,-500.0,0.00014794,2]
[346466699,1734985893235,-500.0,0.00014794,2]
[346466700,1734985893245,-202.980963,0.00014794,2]
[346466701,1734985893254,-2068.91,0.00014794,2]
[346466702,1734985893264,-1429.01,0.00014794,2]
[346466703,1734985893275,-1226.76,0.00014794,2]
[346466704,1734985893284,-2452.75,0.00014794,2]
[346466705,1734985893294,-1241.01,0.00014794,2]
[346466706,1734985893304,-506.4,0.00014794,2]
[346466707,1734985893314,-554.46,0.00014794,2]
[346466708,1734985893324,-18700.62,0.00014794,2]
[346466709,1734985893334,-501.17,0.00014794,2]
[346466710,1734985893344,-3300.69,0.00014794,2]
[346466711,1734985893354,-350.820655,0.00014794,2]
[346466712,1734985893364,-500.0,0.00014794,2]
[346466713,1734985893373,-6119.76,0.00014794,2]
[346466714,1734985893383,-3913.42,0.00014794,2]
[346466715,1734985893393,-500.0,0.00014794,2]
[346466716,1734985893403,-500.0,0.00014794,2]
[346466717,1734985893413,-490.379018,0.00014794,2]
[346466718,1734985893423,-1567.98,0.00014794,2]
[346466719,1734985893433,-6444.03,0.00014794,2]
[346466720,1734985893446,-1453.39,0.00014794,2]
[346466721,1734985893457,-259.99281457,0.00014794,2]
[346466722,1734985893467,-3959.58,0.00014794,2]
[346466723,1734985893479,-1603.61,0.00014794,2]
[346466724,1734985893490,-1456.46,0.00014794,2]
[346466725,1734985893500,-649.54,0.00014794,2]
[346466726,1734985893510,-1305.37,0.00014794,2]
[346466727,1734985893520,-3798.82,0.00014794,2]
[346466728,1734985893530,-4147.05,0.00014794,2]
[346466729,1734985893541,-514.33,0.00014794,2]
[346466730,1734985893551,-3993.59,0.00014794,2]
[346466731,1734985893561,-500.0,0.00014794,2]
[346466732,1734985893570,-3821.57,0.00014794,2]
[346466733,1734985893580,-1842.07,0.00014794,2]
[346466734,1734985893590,-1272.09,0.00014794,2]
[346466735,1734985893600,-4205.8,0.00014794,2]
[346466736,1734985893610,-452.76781,0.00014794,2]
[346466737,1734985893619,-990.12,0.00014794,2]
[346466738,1734985893629,-9580.74,0.00014794,2]
[346466739,1734985893639,-3273.83,0.00014794,2]
[346466740,1734985893649,-500.0,0.00014794,2]
[346466741,1734985893659,-500.0,0.00014794,2]
[346466742,1734985893669,-3939.69,0.00014794,2]
[346466743,1734985893679,-6970.0,0.00014794,2]
[346466744,1734985893691,-513.29459,0.00014794,2]
[346466745,1734985893700,-5297.22,0.00014794,2]
[346466746,1734985893710,-507.24,0.00014794,2]
[346466747,1734985893720,-2342.86,0.00014794,2]
[346466748,1734985893730,-3419.02,0.00014794,2]
[346466749,1734985893740,-880.11,0.00014794,2]
[346466750,1734985893750,-4406.32,0.00014794,2]
[346466751,1734985893760,-500.0,0.00014794,2]
[346466752,1734985893770,-1687.17,0.00014794,2]
[346466753,1734985893780,-500.0,0.00014794,2]
[346466754,1734985893790,-7467.93,0.00014794,2]
[346466755,1734985893800,-1563.38,0.00014794,2]
[346466756,1734985893809,-560.36,0.00014794,2]
[346466757,1734985893819,-3781.54,0.00014794,2]
[346466758,1734985893829,-2438.69,0.00014794,2]
[346466759,1734985893839,-3631.24,0.00014794,2]
[346466760,1734985893848,-7242.71,0.00014794,2]
[346466761,1734985893858,-1012.15,0.00014794,2]
[346466762,1734985893867,-500.0,0.00014794,2]
[346466763,1734985893877,-870.81,0.00014794,2]
[346466764,1734985893887,-1706.03,0.00014794,2]
[346466765,1734985893897,-589.510352,0.00014794,2]
[346466766,1734985893907,-36069.68,0.00014794,2]
[346466767,1734985893917,-8369.58,0.00014794,2]
[346466768,1734985893928,-1841.67,0.00014794,2]
[346466769,1734985893942,-728.54,0.00014794,2]
[346466770,1734985893952,-1042.2,0.00014794,2]
[346466771,1734985893963,-1791.62,0.00014794,2]
[346466772,1734985893974,-7200.05,0.00014794,2]
[346466773,1734985893984,-4088.12,0.00014794,2]
[346466774,1734985893994,-599.323748,0.00014794,2]
[346466775,1734985894004,-500.0,0.00014794,2]
[346466776,1734985894014,-500.0,0.00014794,2]
[346466777,1734985894023,-5502.42,0.00014794,2]
[346466778,1734985894033,-1638.56,0.00014794,2]
[346466779,1734985894043,-1655.23,0.00014794,2]
[346466780,1734985894053,-4525.56,0.00014794,2]
[346466781,1734985894063,-3696.68,0.00014794,2]
[346466782,1734985894073,-6365.37,0.00014794,2]
[346466783,1734985894083,-1166.09,0.00014794,2]
[346466784,1734985894093,-500.0,0.00014794,2]
[346466785,1734985894103,-500.0,0.00014794,2]
[346466786,1734985894112,-2529.79,0.00014794,2]
[346466787,1734985894122,-500.0,0.00014794,2]
[346466788,1734985894131,-5007.05,0.00014794,2]
[346466789,1734985894141,-553.26,0.00014794,2]
[346466790,1734985894151,-4684.79,0.00014794,2]
[346466791,1734985894161,-734.61,0.00014794,2]
[346466792,1734985894170,-500.0,0.00014794,2]
[346466793,1734985894180,-500.0,0.00014794,2]
[346466794,1734985894191,-694.347267,0.00014794,2]
[346466795,1734985894201,-1179.54,0.00014794,2]
[346466796,1734985894211,-4446.01,0.00014794,2]
[346466797,1734985894221,-1889.33,0.00014794,2]
[346466798,1734985894230,-705.165856,0.00014794,2]
[346466799,1734985894240,-1288.53,0.00014794,2]
[346466800,1734985894249,-500.0,0.00014794,2]
[346466801,1734985894259,-1000.67,0.00014794,2]
[346466802,1734985894268,-3407.21,0.00014794,2]
[346466803,1734985894278,-2691.94,0.00014794,2]
[346466804,1734985894289,-500.0,0.00014794,2]
[346466805,1734985894300,-1280.13,0.00014794,2]
[346466806,1734985894310,-12046.36,0.00014794,2]
[346466807,1734985894320,-1334.12,0.00014794,2]
[346466808,1734985894331,-10250.84,0.00014794,2]
[346466809,1734985894341,-25569.1,0.00014794,2]
[346466810,1734985894351,-1478.9,0.00014794,2]
[346466811,1734985894361,-3957.97,0.00014794,2]
[346466812,1734985894370,-500.0,0.00014794,2]
[346466813,1734985894380,-657.62,0.00014794,2]
[346466814,1734985894390,-318.27383962,0.00014794,2]
[346466815,1734985894400,-586.91,0.00014794,2]
[346466816,1734985894409,-3696.53,0.00014794,2]
[346466817,1734985894419,-1054.89,0.00014794,2]
[346466818,1734985894429,-638.65,0.00014794,2]
[346466819,1734985894438,-1067.03,0.00014794,2]
[346466820,1734985894448,-500.0,0.00014794,2]
[346466821,1734985894458,-500.0,0.00014794,2]
[346466822,1734985894468,-937.27,0.00014794,2]
[346466823,1734985894477,-670.92,0.00014794,2]
[346466824,1734985894487,-500.0,0.00014794,2]
[346466825,1734985894496,-3107.9,0.00014794,2]
[346466826,1734985894506,-10329.14,0.00014794,2]
[346466827,1734985894516,-642.93,0.00014794,2]
[346466828,1734985894526,-500.0,0.00014794,2]
[346466829,1734985894535,-500.0,0.00014794,2]
[346466830,1734985894545,-1866.48,0.00014794,2]
[346466831,1734985894555,-1416.27,0.00014794,2]
[346466832,1734985894565,-500.0,0.00014794,2]
[346466833,1734985894574,-1727.253949,0.00014794,2]
[346466834,1734985894584,-1448.92,0.00014794,2]
[346466835,1734985894593,-500.0,0.00014794,2]
[346466836,1734985894603,-501.3833241,0.00014821,2]
[346466837,1734985894613,-925.54014375,0.00014821,2]
[346466838,1734985894622,-1000.0,0.00014821,2]
[346466839,1734985894632,-1000.0,0.00014821,2]
[346466840,1734985894642,-1000.0,0.00014821,2]
[346466841,1734985894651,-1000.0,0.00014821,2]
[346466842,1734985894661,-514.00667512,0.00014821,2]
[346466843,1734985894672,-276.3613334,0.00014831,2]
[346466844,1734985894682,-500.0,0.00014905,2]
[346466845,1734985894693,-165.19057036,0.00014913,2]
[346466846,1734985894703,-151.53550779,0.00014916,2]
[346466847,1734985894713,-1000.0,0.00014929,2]
[346466848,1734985894723,-5183.0,0.00015,2]
[346466849,1734985894732,-500.0,0.00015,2]
[346466850,1734985894742,-8238.37148829,0.00015,10]
[346466851,1734985894752,-33075.03266133,0.00015,2]
[346466852,1734985894762,-14867.87414982,0.00015,2]
[346466853,1734985894772,-34864.20996259,0.00015,2]
[346466854,1734985894781,-300.0,0.00015,2]
[346466855,1734985894791,-151.0,0.00015016,2]
[346466856,1734985894801,-1000.0,0.00015034,2]
[346466857,1734985894811,-1000.0,0.00015034,2]
[346466858,1734985894820,-151.0,0.00015068,2]
[346466859,1734985894829,-151.0,0.00015068,2]
[346466860,1734985894839,-151.0,0.00015068,2]
[346466861,1734985894848,-151.0,0.00015068,2]
[346466862,1734985894858,-151.0,0.00015068,2]
[346466863,1734985894867,-1175.324182,0.00015068,2]
[346466864,1734985894877,-1175.324182,0.00015068,2]
[346466865,1734985894887,-191.488556,0.00015068,2]
[346466866,1734985894896,-191.488556,0.00015068,2]
[346466867,1734985894906,-151.0,0.00015068,2]
[346466868,1734985894916,-151.0,0.00015068,2]
[346466869,1734985894927,-151.0,0.00015068,2]
[346466870,1734985894940,-151.0,0.00015068,2]
[346466871,1734985894949,-151.0,0.00015068,2]
[346466872,1734985894958,-151.0,0.00015068,2]
[346466873,1734985894968,-151.0,0.00015068,2]
[346466874,1734985894978,-968.93,0.00015068,2]
[346466875,1734985894988,-241.59839,0.00015068,2]
[346466876,1734985894998,-241.59839,0.00015068,2]